fUSD/lending_fUSD_20260202
["ID","MTS","AMOUNT","RATE_DAILY","PERIOD"]
[404285174,1770031842255,-2327.6382,0.00016095,2]
[404285175,1770031842264,-169.52791299,0.00016191,2]
[404285176,1770031842274,-720.83581714,0.00016191,2]
[404285177,1770031842286,-2573.08511617,0.00016191,2]
[404285178,1770031842296,-721.12765535,0.00016195,2]
[404285179,1770031842305,-174.61919141,0.00016195,2]
[404285180,1770031842314,-578.20924308,0.00016195,2]
[404285181,1770031842325,-322.6107,0.00016195,2]
[404285182,1770031842338,-209.40437684,0.00016195,2]
[404285183,1770031842347,-209.40437684,0.00016195,2]
[404285184,1770031842358,-209.40437684,0.00016195,2]
[404285185,1770031842368,-1428.38747117,0.00016195,2]
[404285186,1770031842379,-250.0,0.00016195,2]
[404285187,1770031842388,-250.0,0.00016195,2]
[404285188,1770031842398,-250.0,0.00016195,2]
[404285189,1770031842407,-250.0,0.00016195,2]
[404285190,1770031842417,-250.0,0.00016195,2]
[404285191,1770031842426,-250.0,0.00016195,2]
[404285192,1770031842435,-250.0,0.00016195,2]
[404285193,1770031842444,-250.0,0.00016195,2]
[404285194,1770031842453,-250.0,0.00016195,2]
[404285195,1770031842462,-166.20200611,0.00016195,2]
[404285196,1770031842471,-859.80605061,0.00016195,2]
[404285197,1770031842480,-217.15233878,0.0001625,2]
[404285198,1770031842489,-225.18697532,0.00016305,2]
[404285199,1770031842498,-233.51889341,0.0001636,2]
[404285200,1770031842507,-3267.25361276,0.0001638,2]
[404285201,1770031842516,-1000.0,0.0001639,2]
[404285202,1770031842526,-163.0,0.000164,2]
[404285203,1770031842534,-242.15909246,0.00016415,2]
[404285204,1770031842544,-1219.3,0.00016438,2]
[404285205,1770031842552,-500.0,0.00016438,2]
[404285206,1770031842561,-258.46453599,0.00016438,2]
[404285207,1770031842570,-500.0,0.00016438,2]
[404285208,1770031842580,-500.0,0.00016438,2]
[404285209,1770031842593,-500.0,0.00016438,2]
[404285210,1770031842602,-500.0,0.00016438,2]
[404285211,1770031842612,-500.0,0.00016438,2]
[404285212,1770031842621,-500.0,0.00016438,2]
[404285213,1770031842630,-500.0,0.00016438,2]
[404285214,1770031842640,-500.0,0.00016438,2]
[404285215,1770031842649,-500.0,0.00016438,2]
[404285216,1770031842658,-500.0,0.00016438,2]
[404285217,1770031842667,-500.0,0.00016438,2]
[404285218,1770031842676,-500.0,0.00016438,2]
[404285219,1770031842685,-500.0,0.00016438,2]
[404285220,1770031842694,-500.0,0.00016438,2]
[404285221,1770031842703,-500.0,0.00016438,2]
[404285222,1770031842713,-500.0,0.00016438,2]
[404285223,1770031842722,-500.0,0.00016438,2]
[404285224,1770031842730,-376.8383506,0.00016438,2]
[404285225,1770031842739,-500.0,0.00016438,2]
[404285226,1770031842748,-500.0,0.00016438,2]
[404285227,1770031842757,-500.0,0.00016438,2]
[404285229,1770031842766,-500.0,0.00016438,2]
[404285230,1770031842775,-500.0,0.00016438,2]
[404285231,1770031842784,-500.0,0.00016438,2]
[404285232,1770031842793,-500.0,0.00016438,2]
[404285233,1770031842802,-500.0,0.00016438,2]
[404285234,1770031842812,-500.0,0.00016438,2]
[404285235,1770031842822,-500.0,0.00016438,2]
[404285236,1770031842831,-500.0,0.00016438,2]
[404285237,1770031842843,-500.0,0.00016438,2]
[404285238,1770031842852,-500.0,0.00016438,2]
[404285239,1770031842861,-500.0,0.00016438,2]
[404285240,1770031842871,-500.0,0.00016438,2]
[404285241,1770031842880,-500.0,0.00016438,2]
[404285242,1770031842889,-500.0,0.00016438,2]
[404285243,1770031842899,-500.0,0.00016438,2]
[404285244,1770031842907,-500.0,0.00016438,2]
[404285245,1770031842917,-500.0,0.00016438,2]
[404285246,1770031842926,-500.0,0.00016438,2]
[404285247,1770031842936,-152.11054002,0.00016438,2]
[404285248,1770031842945,-500.0,0.00016438,2]
[404285249,1770031842954,-500.0,0.00016438,2]
[404285250,1770031842963,-500.0,0.00016438,2]
[404285251,1770031842972,-500.0,0.00016438,2]
[404285252,1770031842981,-251.11897888,0.0001647,2]
[404285253,1770031842990,-260.4103811,0.00016525,2]
[404285254,1770031842999,-1860.35783051,0.00016532,2]
[404285255,1770031843008,-165.40489721,0.00016568,2]
[404285256,1770031843017,-1500.0,0.00016568,2]
[404285257,1770031843026,-1216.63993214,0.00016568,2]
[404285258,1770031843037,-1500.0,0.00016568,2]
[404285259,1770031843046,-1002.03881526,0.00016568,2]
[404285260,1770031843055,-270.0455652,0.0001658,2]
[404285261,1770031843064,-280.03725112,0.00016635,2]
[404285262,1770031843261,-290.39862941,0.0001669,2]
[404285263,1770031843271,-181.08010149,0.00016743,2]
[404285264,1770031843282,-217.15233878,0.00016743,2]
[404285265,1770031843291,-217.15233878,0.00016743,2]
[404285266,1770031843300,-1481.23780761,0.00016743,2]
[404285267,1770031843311,-891.61887448,0.00016743,2]
[404285268,1770031843319,-301.1433787,0.00016745,2]
[404285269,1770031843329,-3267.25361276,0.0001676,2]
[404285270,1770031843339,-181.68,0.00016827,2]
[404285271,1770031843348,-500.0,0.00016885,2]
[404285272,1770031843357,-2205.73614126,0.00017,3]
[404285273,1770031843366,-157726.06092768,0.00017,2]
[404285274,1770031843376,-300.0,0.00017,2]
[404285275,1770031843385,-839.0,0.0001704,2]
[404285276,1770031843394,-169.52791299,0.00017045,2]
[404285277,1770031843403,-2136.8475123,0.00017116,2]
[404285278,1770031843412,-504.86417643,0.00017116,2]
[404285279,1770031843424,-3267.25361276,0.0001714,2]
[404285280,1770031843433,-5160.0,0.00017168,2]
[404285281,1770031843442,-163.0,0.0001719,2]
[404285282,1770031843451,-1219.3,0.00017202,2]
[404285283,1770031843460,-162.33,0.00017204,2]
[404285284,1770031843469,-1860.35783051,0.00017216,2]
[404285285,1770031843479,-1000.0,0.0001726,2]
[404285286,1770031843488,-187.78006525,0.00017291,2]
[404285287,1770031843498,-225.18697532,0.00017291,2]
[404285288,1770031843507,-225.18697532,0.00017291,2]
[404285289,1770031843517,-1536.04360649,0.00017291,2]
[404285290,1770031843527,-924.60877284,0.00017291,2]
[404285291,1770031843536,-250.0,0.00017326,2]
[404285292,1770031843546,-200.0,0.00017332,2]
[404285293,1770031843555,-200.0,0.00017339,2]
[404285294,1770031843564,-839.0,0.0001736,2]
[404285296,1770031843573,-163.0,0.0001736,2]
[404285297,1770031843582,-188.79466042,0.0001739,2]
[404285298,1770031843594,-1500.0,0.000174,2]
[404285299,1770031843603,-2844.0,0.000174,2]
[404285300,1770031843612,-5160.0,0.00017401,2]
[404285302,1770031843622,-1899.6725397,0.00017402,2]
[404285304,1770031843632,-200.0,0.00017421,2]
[404285306,1770031843641,-1551.0,0.00017468,2]
[404285308,1770031843650,-5160.0,0.00017482,2]
[404285310,1770031843660,-13442.50995431,0.000175,2]
[404285311,1770031843669,-3267.25361276,0.0001752,2]
[404285312,1770031843678,-159.99318318,0.00017524,2]
[404285313,1770031843687,-1000.0,0.00017534,2]
[404285314,1770031843696,-403.0,0.0001756,2]
[404285315,1770031843705,-334.5472959,0.00017564,2]
[404285316,1770031843714,-2512.171,0.00017572,2]
[404285317,1770031843723,-159.765,0.00017572,2]
[404285318,1770031843731,-262.0,0.00017575,2]
[404285319,1770031843740,-181.68,0.00017592,2]
[404285320,1770031843749,-403.0,0.00017617,2]
[404285321,1770031843758,-1107.07226774,0.0001764,2]
[404285322,1770031843766,-1623.88290023,0.0001764,2]
[404285323,1770031843775,-624.0,0.00017666,2]
[404285324,1770031843785,-487.72452553,0.00017671,2]
[404285325,1770031843793,-2835.0,0.0001768,2]
[404285326,1770031843802,-163.0,0.0001768,2]
[404285327,1770031843811,-839.0,0.0001768,2]
[404285328,1770031843819,-1500.0,0.000177,2]
[404285329,1770031843828,-10091.57601831,0.00017724,2]
[404285330,1770031843838,-324.0,0.00017727,2]
[404285331,1770031843847,-403.0,0.00017755,2]
[404285332,1770031843855,-242.83565079,0.0001776,2]
[404285333,1770031843864,-32015.71630122,0.00017773,2]
[404285334,1770031843873,-772.93,0.00017791,2]
[404285335,1770031843882,-624.0,0.00017795,2]
[404285336,1770031843890,-164.0627708,0.000178,2]
[404285337,1770031843899,-502.14782899,0.000178,3]
[404285338,1770031843908,-1000.0,0.00017803,2]
[404285339,1770031843917,-500.0,0.00017808,2]
[404285340,1770031843926,-1000.0,0.00017808,2]
[404285341,1770031843935,-839.0,0.00017815,2]
[404285342,1770031843944,-2000.0,0.0001782,2]
[404285343,1770031843953,-2000.0,0.0001782,2]
[404285344,1770031843962,-25000.0,0.00017832,3]
[404285345,1770031843972,-194.72792766,0.00017839,2]
[404285346,1770031843981,-276.99112213,0.00017839,2]
[404285347,1770031843990,-233.51889341,0.00017839,2]
[404285348,1770031843999,-1592.87721993,0.00017839,2]
[404285349,1770031844009,-958.81929743,0.00017839,2]
[404285350,1770031844018,-25000.0,0.00017841,3]
[404285351,1770031844027,-25000.0,0.00017849,3]
[404285352,1770031844035,-200.0,0.00017855,2]
[404285353,1770031844044,-200.0,0.00017856,2]
[404285354,1770031844052,-200.0,0.00017856,2]
[404285355,1770031844061,-200.0,0.00017856,2]
[404285356,1770031844070,-25000.0,0.00017858,3]
[404285357,1770031844079,-500.0,0.00017863,2]
[404285358,1770031844089,-25000.0,0.00017867,3]
[404285359,1770031844097,-403.0,0.00017869,2]
[404285360,1770031844106,-25000.0,0.00017876,3]
[404285361,1770031844115,-1000.0,0.0001788,2]
[404285362,1770031844124,-25000.0,0.00017885,3]
[404285363,1770031844133,-500.0,0.00017888,2]
[404285364,1770031844142,-500.0,0.00017888,2]
[404285365,1770031844151,-500.0,0.00017888,2]
[404285366,1770031844160,-25000.0,0.00017893,3]
[404285367,1770031844168,-403.0,0.00017895,2]
[404285368,1770031844177,-506.4463116,0.00017899,2]
[404285369,1770031844186,-500.0,0.00017899,2]
[404285370,1770031844195,-503.69401691,0.00017899,2]
[404285371,1770031844203,-500.0,0.00017899,2]
[404285372,1770031844212,-500.0,0.00017899,2]
[404285373,1770031844221,-500.0,0.00017899,2]
[404285374,1770031844230,-500.0,0.00017899,2]
[404285375,1770031844239,-500.0,0.00017899,2]
[404285376,1770031844247,-500.0,0.00017899,2]
[404285377,1770031844256,-500.0,0.00017899,2]
[404285378,1770031844265,-500.0,0.00017899,2]
[404285379,1770031844273,-500.0,0.00017899,2]
[404285380,1770031844286,-523.26417397,0.00017899,2]
[404285381,1770031844295,-500.0,0.00017899,2]
[404285382,1770031844304,-500.0,0.00017899,2]
[404285383,1770031844314,-587.5541255,0.00017899,2]
[404285384,1770031844323,-500.0,0.00017899,2]
[404285385,1770031844332,-496.93460441,0.00017899,2]
[404285386,1770031844341,-500.0,0.00017899,2]
[404285387,1770031844351,-500.0,0.00017899,2]
[404285388,1770031844361,-500.0,0.00017899,2]
[404285389,1770031844369,-500.0,0.00017899,2]
[404285390,1770031844378,-519.14978785,0.00017899,2]
[404285391,1770031844387,-500.0,0.00017899,2]
[404285392,1770031844396,-500.0,0.00017899,2]
[404285393,1770031844404,-500.0,0.00017899,2]
[404285394,1770031844414,-500.0,0.00017899,2]
[404285395,1770031844423,-500.0,0.00017899,2]
[404285396,1770031844432,-500.0,0.00017899,2]
[404285397,1770031844441,-500.0,0.00017899,2]
[404285398,1770031844450,-500.0,0.00017899,2]
[404285399,1770031844459,-500.0,0.00017899,2]
[404285400,1770031844469,-500.0,0.00017899,2]
[404285401,1770031844478,-500.0,0.00017899,2]
[404285402,1770031844488,-277.632,0.00017899,2]
[404285403,1770031844497,-1000.0,0.000179,2]
[404285404,1770031844506,-404262.7347,0.000179,2]
[404285405,1770031844515,-10139.4576,0.000179,2]
[404285406,1770031844525,-541.5046,0.000179,2]
[404285407,1770031844534,-164.0627708,0.000179,2]
[404285408,1770031844543,-169.52791299,0.000179,2]
[404285409,1770031844552,-3267.25361276,0.000179,2]
[404285410,1770031844561,-720.83581714,0.000179,2]
[404285411,1770031844570,-2573.08511617,0.000179,2]
[404285412,1770031844580,-199.24021691,0.000179,2]
[404285413,1770031844589,-1860.35783051,0.000179,2]
[404285414,1770031844599,-10384.0,0.000179,2]
[404285415,1770031844607,-25000.0,0.00017902,3]
[404285416,1770031844617,-378.0,0.00017905,2]
[404285417,1770031844626,-25000.0,0.00017911,3]
[404285418,1770031844635,-500.0,0.00017918,2]
[404285419,1770031844643,-25000.0,0.0001792,3]
[404285420,1770031844652,-25000.0,0.00017929,3]
[404285421,1770031844661,-25000.0,0.00017937,3]
[404285422,1770031844670,-233.3364064,0.0001794,2]
[404285423,1770031844679,-25000.0,0.00017946,3]
[404285424,1770031844689,-25000.0,0.00017955,3]
[404285425,1770031844698,-25000.0,0.00017964,3]
[404285426,1770031844706,-1219.3,0.00017966,2]
[404285427,1770031844715,-506.1208044,0.00017972,2]
[404285428,1770031844724,-25000.0,0.00017973,3]
[404285429,1770031844733,-1000.0,0.00017976,2]
[404285430,1770031844741,-200.009499,0.00017979,2]
[404285431,1770031844750,-25000.0,0.00017981,3]
[404285432,1770031844759,-500.0,0.00017982,2]
[404285433,1770031844768,-275.02857155,0.00017986,2]
[404285434,1770031844777,-188.79466042,0.0001799,2]
[404285435,1770031844786,-25000.0,0.0001799,3]
[404285436,1770031844795,-5800.0,0.00017992,2]
[404285437,1770031844803,-200.0,0.00017992,2]
[404285438,1770031844812,-6719.4140709,0.00017995,2]
[404285439,1770031844821,-82848.0114292,0.00017995,2]
[404285440,1770031844831,-1647.250915,0.00017995,2]
[404285441,1770031844841,-153.40029052,0.00017999,2]
[404285442,1770031844850,-155.0,0.00017999,2]
[404285443,1770031844859,-300.0,0.00017999,2]
[404285444,1770031844869,-25000.0,0.00017999,3]
[404285445,1770031844878,-300.0,0.00017999,2]
[404285446,1770031844888,-300.0,0.00017999,2]
[404285447,1770031844897,-300.0,0.00017999,2]
[404285448,1770031844907,-1947445.29365387,0.00018,2]
[404285449,1770031844935,-1859.21628024,0.00018,2]
[404285450,1770031844946,-1140.95,0.00018,2]
[404285451,1770031845204,-725.91164319,0.00018,2]
[404285452,1770031845223,-389.0996052,0.00018,2]
[404285453,1770031845534,-3221.77332061,0.00015241,2]
[404285454,1770031845543,-1667479.63913761,0.00018,2]
[404285455,1770031845554,-1431.37501832,0.00018,2]
[404285456,1770031845565,-520.60814344,0.00018,2]
[404285461,1770031846092,-269.92100004,0.00018,2]
[404285465,1770031846200,-3221.77332061,0.00015621,2]
[404285466,1770031846210,-260.10962248,0.00018,2]
[404285494,1770032688110,175.91,0.00010198,2]
[404285934,1770032800103,171.68,0.00012631,2]
[404285935,1770032800297,171.68,0.00012665,2]
[404285936,1770032800737,171.68,0.00012698,2]
[404285937,1770032800942,171.68,0.00012731,2]
[404285938,1770032801130,171.68,0.00012764,2]
[404285939,1770032801349,171.68,0.00012798,2]
[404285956,1770032889451,198.39137328,0.0001273,2]
[404285993,1770032961220,1996.82,0.00011993,2]
[404285999,1770033003954,1598.80862672,0.00012802,2]
[404286000,1770033003978,5000.01,0.00012802,2]
[404286001,1770033004002,5000.01,0.00012802,2]
[404286002,1770033004025,5000.01,0.00012802,2]
[404286003,1770033004048,5000.01,0.00012802,2]
[404286004,1770033004072,5000.01,0.00012802,2]
[404286005,1770033004094,5000.01,0.00012802,2]
[404286006,1770033004119,5000.01,0.00012802,2]
[404286007,1770033004142,5000.01,0.00012802,2]
[404286008,1770033004166,5000.01,0.00012802,2]
[404286009,1770033010801,-2700.0,0.00012802,2]
[404286011,1770033012790,-5000.01,0.00012802,2]
[404286012,1770033012899,-5000.01,0.00012802,2]
[404286013,1770033013032,-5000.01,0.00012802,2]
[404286014,1770033013203,-5000.01,0.00012802,2]
[404286015,1770033013328,-5000.01,0.00012802,2]
[404286016,1770033013474,-5000.01,0.00012802,2]
[404286017,1770033013576,-5000.01,0.00012802,2]
[404286018,1770033013689,-5000.01,0.00012802,2]
[404286019,1770033013820,-5000.01,0.00012802,2]
[404286020,1770033018824,-5000.01,0.00012802,2]
[404286021,1770033018924,-5000.01,0.00012802,2]
[404286022,1770033019034,-5000.01,0.00012802,2]
[404286023,1770033019170,-5000.01,0.00012802,2]
[404286024,1770033019280,-5000.01,0.00012802,2]
[404286025,1770033019421,-5000.01,0.00012802,2]
[404286026,1770033019581,-5000.01,0.00012802,2]
[404286027,1770033019680,-5000.01,0.00012802,2]
[404286028,1770033019806,-5000.01,0.00012802,2]
[404286029,1770033019922,-5000.01,0.00012802,2]
[404286030,1770033024967,-5000.01,0.00012802,2]
[404286031,1770033025077,-5000.01,0.00012802,2]
[404286032,1770033025195,-5000.01,0.00012802,2]
[404286033,1770033025297,-5000.01,0.00012802,2]
[404286034,1770033025415,-5000.01,0.00012802,2]
[404286035,1770033025559,-5000.01,0.00012802,2]
[404286036,1770033025702,-5000.01,0.00012802,2]
[404286037,1770033025798,-5000.01,0.00012802,2]
[404286038,1770033025923,-5000.01,0.00012802,2]
[404286039,1770033026045,-5000.01,0.00012802,2]
[404286040,1770033030977,-5000.01,0.00012802,2]
[404286041,1770033031075,-5000.01,0.00012802,2]
[404286042,1770033031177,-5000.01,0.00012802,2]
[404286043,1770033031299,-5000.01,0.00012802,2]
[404286044,1770033031397,-5000.01,0.00012802,2]
[404286045,1770033031510,-5000.01,0.00012802,2]
[404286046,1770033031629,-5000.01,0.00012802,2]
[404286047,1770033031771,-5000.01,0.00012802,2]
[404286049,1770033032433,-681.30855541,0.00012802,2]
[404286050,1770033032444,-704.890961,0.00012802,2]
[404286051,1770033032459,-19881.94528507,0.00012802,2]
[404286052,1770033032472,-5000.01,0.00012802,2]
[404286053,1770033032490,-5000.01,0.00012802,2]
[404286054,1770033037031,-5000.01,0.00012802,2]
[404286055,1770033037476,-5000.01,0.00012802,2]
[404286056,1770033037557,-5000.01,0.00012802,2]
[404286057,1770033037573,-5000.01,0.00012802,2]
[404286058,1770033037606,-5000.01,0.00012802,2]
[404286059,1770033037681,-5000.01,0.00012802,2]
[404286060,1770033037791,-5000.01,0.00012802,2]
[404286061,1770033037935,-5000.01,0.00012802,2]
[404286062,1770033038063,-5000.01,0.00012802,2]
[404286063,1770033038199,-5000.01,0.00012802,2]
[404286064,1770033038572,-3623.96507186,0.00012802,2]
[404286065,1770033038626,-8071.6518713,0.00012802,2]
[404286066,1770033038681,-975.13,0.00012802,2]
[404286067,1770033038696,-1189.37014116,0.00012802,2]
[404286071,1770033040759,-8694.97708584,0.00012802,2]
[404286072,1770033040771,-1780.93726904,0.00012802,2]
[404286073,1770033040783,-1109.86639144,0.00012802,2]
[404286074,1770033040795,-997.96471576,0.00012802,2]
[404286075,1770033040809,-389.908962,0.00012802,2]
[404286076,1770033041299,-61861.4297634,0.00012802,2]
[404286077,1770033041311,-1024.0,0.00012815,2]
[404286078,1770033041322,-300.0,0.00012815,2]
[404286079,1770033041334,-1200.0,0.00012815,2]
[404286080,1770033041345,-255.0,0.00012815,2]
[404286081,1770033041355,-152.03521204,0.00012816,2]
[404286082,1770033041365,-150.0,0.00012816,2]
[404286083,1770033041376,-6922.0,0.00012816,2]
[404286084,1770033041390,-150.0,0.00012816,2]
[404286085,1770033041402,-150.0,0.00012816,2]
[404286086,1770033041413,-159.765,0.0001283,2]
[404286087,1770033041423,-2512.171,0.0001283,2]
[404286088,1770033041434,-152.03521204,0.0001283,2]
[404286089,1770033041444,-300.0,0.0001283,2]
[404286090,1770033041454,-171.68,0.00012831,2]
[404286091,1770033041464,-171.68,0.00012864,2]
[404286092,1770033041475,-166.03286464,0.00012871,2]
[404286093,1770033041485,-6922.0,0.00012871,2]
[404286094,1770033041495,-154.11430393,0.00012871,2]
[404286095,1770033041506,-300.0,0.00012889,2]
[404286096,1770033041519,-502.95071126,0.00012891,2]
[404286097,1770033041532,-304.75672637,0.00012891,2]
[404286098,1770033041545,-500.0,0.00012891,2]
[404286099,1770033041557,-500.0,0.00012891,2]
[404286100,1770033041567,-500.0,0.00012891,2]
[404286101,1770033041577,-500.0,0.00012891,2]
[404286102,1770033041588,-500.0,0.00012891,2]
[404286103,1770033041598,-500.0,0.00012891,2]
[404286104,1770033041608,-500.0,0.00012891,2]
[404286105,1770033041619,-500.0,0.00012891,2]
[404286107,1770033041629,-500.0,0.00012891,2]
[404286109,1770033041639,-500.0,0.00012891,2]
[404286111,1770033041651,-500.0,0.00012891,2]
[404286113,1770033041661,-500.0,0.00012891,2]
[404286115,1770033041671,-500.0,0.00012891,2]
[404286117,1770033041681,-500.0,0.00012891,2]
[404286119,1770033041693,-500.0,0.00012891,2]
[404286121,1770033041703,-500.0,0.00012891,2]
[404286123,1770033041713,-500.0,0.00012891,2]
[404286125,1770033041726,-500.0,0.00012891,2]
[404286127,1770033041736,-500.0,0.00012891,2]
[404286129,1770033041747,-500.0,0.00012891,2]
[404286131,1770033041757,-500.0,0.00012891,2]
[404286133,1770033041767,-500.0,0.00012891,2]
[404286135,1770033041777,-500.0,0.00012891,2]
[404286137,1770033041789,-500.0,0.00012891,2]
[404286138,1770033041801,-500.0,0.00012891,2]
[404286139,1770033041811,-500.0,0.00012891,2]
[404286140,1770033041821,-500.0,0.00012891,2]
[404286141,1770033041833,-500.0,0.00012891,2]
[404286142,1770033041844,-500.0,0.00012891,2]
[404286143,1770033041855,-500.0,0.00012891,2]
[404286144,1770033041866,-500.0,0.00012891,2]
[404286145,1770033041878,-500.0,0.00012891,2]
[404286146,1770033041889,-585.28202299,0.00012891,2]
[404286147,1770033041902,-500.0,0.00012891,2]
[404286148,1770033041915,-10954.02929014,0.00012892,2]
[404286149,1770033041928,-720.83581716,0.00012892,2]
[404286150,1770033041941,-171.68,0.00012897,2]
[404286151,1770033041954,-150.0,0.00012902,2]
[404286152,1770033041966,-46638.69,0.00012903,2]
[404286153,1770033041980,-6922.0,0.00012926,2]
[404286154,1770033041991,-171.68,0.0001293,2]
[404286155,1770033042002,-171.68,0.00012964,2]
[404286156,1770033042013,-6922.0,0.0001298,2]
[404286157,1770033042025,-283.19199064,0.0001298,2]
[404286158,1770033042037,-498.29250115,0.00012989,2]
[404286159,1770033042048,-2900000.0,0.0001299,2]
[404286160,1770033042060,-2327.6382,0.00012992,2]
[404286161,1770033042072,-171.68,0.00012997,2]
[404286162,1770033042084,-171.68,0.0001303,2]
[404286163,1770033042095,-6922.0,0.00013035,2]
[404286164,1770033042107,-171.68,0.00013063,2]
[404286165,1770033042117,-517.79119955,0.00013082,2]
[404286166,1770033042127,-999.99,0.00013082,2]
[404286167,1770033042138,-150.99,0.00013082,2]
[404286168,1770033042148,-5935.32,0.00013082,2]
[404286169,1770033042160,-9999.99,0.00013082,2]
[404286170,1770033042170,-150.99,0.00013082,2]
[404286171,1770033042181,-9999.99,0.00013082,2]
[404286172,1770033042192,-2376.32,0.00013084,2]
[404286173,1770033042203,-500.0,0.00013084,2]
[404286174,1770033042213,-500.0,0.00013084,2]
[404286175,1770033042223,-500.0,0.00013084,2]
[404286176,1770033042234,-500.0,0.00013084,2]
[404286177,1770033042244,-500.0,0.00013084,2]
[404286178,1770033042255,-500.0,0.00013084,2]
[404286179,1770033042266,-500.0,0.00013084,2]
[404286180,1770033042277,-500.0,0.00013084,2]
[404286181,1770033042289,-471.25854336,0.00013084,2]
[404286182,1770033042300,-500.0,0.00013084,2]
[404286183,1770033042311,-151.0,0.00013084,2]
[404286184,1770033042322,-151.0,0.00013084,2]
[404286185,1770033042333,-151.0,0.00013084,2]
[404286186,1770033042344,-151.0,0.00013084,2]
[404286187,1770033042356,-151.0,0.00013084,2]
[404286188,1770033042367,-151.0,0.00013084,2]
[404286189,1770033042378,-151.0,0.00013084,2]
[404286190,1770033042391,-151.0,0.00013084,2]
[404286191,1770033042403,-151.0,0.00013084,2]
[404286192,1770033042413,-151.0,0.00013084,2]
[404286193,1770033042424,-151.0,0.00013084,2]
[404286194,1770033042435,-500.0,0.00013084,2]
[404286195,1770033042446,-500.0,0.00013084,2]
[404286196,1770033042458,-500.0,0.00013084,2]
[404286197,1770033042469,-500.0,0.00013084,2]
[404286198,1770033042480,-500.0,0.00013084,2]
[404286199,1770033042492,-500.0,0.00013084,2]
[404286200,1770033042503,-500.0,0.00013084,2]
[404286201,1770033042513,-211.73556923,0.00013084,2]
[404286202,1770033042523,-6922.0,0.0001309,2]
[404286203,1770033042534,-171.68,0.00013097,2]
[404286204,1770033042544,-171.68,0.0001313,2]
[404286205,1770033042555,-6922.0,0.00013145,2]
[404286206,1770033042566,-171.68,0.00013163,2]
[404286207,1770033042577,-171.68,0.00013196,2]
[404286208,1770033042587,-6922.0,0.000132,2]
[404286209,1770033042598,-171.68,0.0001323,2]
[404286210,1770033042609,-166.66,0.0001325,2]
[404286211,1770033042620,-6922.0,0.00013254,2]
[404286212,1770033042631,-171.68,0.00013263,2]
[404286213,1770033042644,-199.24021692,0.00013264,2]
[404286214,1770033042658,-393.99562507,0.00013301,2]
[404286215,1770033042668,-6922.0,0.00013309,2]
[404286216,1770033042678,-5146.17023236,0.00013347,2]
[404286217,1770033042688,-6922.0,0.00013364,2]
[404286218,1770033042701,-6922.0,0.00013419,2]
[404286219,1770033042713,-11435.38764467,0.00013447,2]
[404286220,1770033042725,-10954.02929009,0.00013448,2]
[404286221,1770033042736,-6922.0,0.00013474,2]
[404286222,1770033042747,-1600.0,0.0001349,2]
[404286223,1770033042760,-6922.0,0.00013528,2]
[404286224,1770033042774,-6922.0,0.00013583,2]
[404286225,1770033042786,-500.0,0.00013632,2]
[404286226,1770033042800,-6922.0,0.00013638,2]
[404286227,1770033042813,-166.66,0.00013687,2]
[404286228,1770033042825,-6922.0,0.00013693,2]
[404286229,1770033042836,-500.0,0.00013698,2]
[404286230,1770033042848,-500.0,0.00013698,2]
[404286231,1770033042860,-500.0,0.00013698,2]